bitfinex/quotes_ETHUSD_20230903
["timestamp","ask_amount","ask_price","bid_price","bid_amount"]
[1693753158875,1.51439913,1636.9,1636.8,4.28919223]
[1693753159071,0.64132346,1636.9,1636.8,4.28919223]
[1693753159363,1.51439913,1636.9,1636.8,4.28919223]
[1693753159584,0.64132346,1636.9,1636.8,4.28919223]
[1693753159785,1.51439913,1636.9,1636.8,4.28919223]
[1693753159977,2.1478461,1636.9,1636.8,4.28919223]
[1693753160178,0.64132346,1636.9,1636.8,4.28919223]
[1693753160472,1.51439913,1636.9,1636.8,4.28919223]
[1693753160667,0.64132346,1636.9,1636.8,4.28919223]
[1693753161212,1.51439913,1636.9,1636.8,4.28919223]
[1693753161415,0.64132346,1636.9,1636.8,4.28919223]
[1693753161588,1.51439913,1636.9,1636.8,4.28919223]
[1693753161794,0.64132346,1636.9,1636.8,4.28919223]
[1693753161996,1.51439913,1636.9,1636.8,4.28919223]
[1693753162213,0.64132346,1636.9,1636.8,4.28919223]
[1693753162688,1.51439913,1636.9,1636.8,4.28919223]
[1693753163016,0.64132346,1636.9,1636.8,4.28919223]
[1693753163213,1.51439913,1636.9,1636.8,4.28919223]
[1693753163521,1.27477043,1636.9,1636.8,4.28919223]
[1693753164214,0.64132346,1636.9,1636.8,4.28919223]
[1693753165412,1.51445694,1636.9,1636.8,4.28919223]
[1693753165618,0.64132346,1636.9,1636.8,4.28919223]
[1693753165919,1.51445694,1636.9,1636.8,4.28919223]
[1693753166123,0.64132346,1636.9,1636.8,4.28919223]
[1693753166612,1.51445694,1636.9,1636.8,4.28919223]
[1693753166808,0.64132346,1636.9,1636.8,4.28919223]
[1693753167120,1.51445694,1636.9,1636.8,4.28919223]
[1693753167330,2.14790391,1636.9,1636.8,4.28919223]
[1693753171031,1.27477043,1636.9,1636.8,4.28919223]
[1693753184459,1.27477043,1636.9,1636.8,3.62653839]
[1693753185135,2.14814524,1636.9,1636.8,3.62653839]
[1693753186363,2.14814422,1636.9,1636.8,3.62653839]
[1693753194201,3.10721382,1636.9,1636.8,3.62653839]
[1693753195376,3.1117295,1636.9,1636.8,3.62653839]
[1693753202712,3.1117295,1636.9,1636.8,0.54468435]
[1693753202713,4.03006605,1636.9,1636.8,0.54468435]
[1693753202903,4.76057535,1636.9,1636.8,0.54468435]
[1693753203682,6.21147756,1636.9,1636.8,0.54468435]
[1693753204485,2.46998246,1636.9,1636.8,3.62653839]
[1693753204881,3.11114293,1636.9,1636.8,3.62653839]
[1693753205416,2.14882887,1636.9,1636.8,3.62653839]
[1693753208821,3.59555677,1637.0,1636.8,3.62653839]
[1693753209209,0.64154271,1637.0,1636.9,3.08185404]
[1693753209413,0.64154271,1637.0,1636.9,3.44450788]
[1693753209715,1.51479726,1637.0,1636.9,3.44450788]
[1693753211351,1.27545415,1637.0,1636.9,3.44450788]
[1693753211535,0.64154271,1637.0,1636.9,3.44450788]
[1693753212405,1.27545415,1637.0,1636.9,3.92450788]
[1693753212607,0.64154271,1637.0,1636.9,3.92450788]
[1693753214519,0.63391144,1637.0,1636.9,3.92450788]
[1693753214905,2.23776821,1637.1,1636.9,3.92450788]
[1693753215131,0.63391144,1637.0,1636.9,3.56185404]
[1693753215640,1.60385677,1637.1,1636.9,3.56185404]
[1693753215840,3.11035526,1637.1,1636.9,3.56185404]
[1693753216044,1.60385677,1637.1,1636.9,3.56185404]
[1693753216343,3.11035534,1637.1,1636.9,3.56185404]
[1693753216543,1.60385677,1637.1,1637.0,0.3561854]
[1693753216744,3.1102998,1637.1,1637.0,3.43803944]
[1693753219943,4.02875709,1637.1,1636.9,0.48]
[1693753220117,2.14759081,1637.0,1636.9,3.08185404]
[1693753220447,3.10990487,1637.0,1636.9,3.08185404]
[1693753222649,3.10990487,1637.0,1636.9,3.08601444]
[1693753227345,3.10990487,1637.0,1636.9,0.0041604]
[1693753228565,3.10990487,1637.0,1636.8,0.54054587]
[1693753228850,1.60346184,1637.0,1636.8,3.62239991]
[1693753229058,3.10984057,1637.0,1636.8,3.62239991]
[1693753229273,1.60346184,1637.0,1636.8,3.62239991]
[1693753229472,3.10984859,1637.0,1636.8,3.62239991]
[1693753229672,2.23704009,1637.0,1636.9,0.0041604]
[1693753229976,3.10983564,1637.0,1636.9,0.0041604]
[1693753230555,3.10983564,1637.0,1636.8,3.62239991]
[1693753230733,1.60346184,1637.0,1636.8,3.62239991]
[1693753231049,3.10983483,1637.0,1636.8,3.62239991]
[1693753231246,1.60346184,1637.0,1636.8,3.62239991]
[1693753231446,1.27472542,1636.9,1636.8,3.62239991]
[1693753231948,0.64114778,1636.9,1636.8,3.62239991]
[1693753232155,1.27472542,1636.9,1636.8,3.62239991]
[1693753232652,1.27472542,1636.9,1636.8,3.62649156]
[1693753234936,0.63357764,1636.9,1636.8,0.54463752]
[1693753235128,4.28361846,1636.9,1636.8,0.54463752]
[1693753248381,3.70753451,1636.9,1636.8,0.54463752]
[1693753250776,2.14753451,1636.9,1636.8,0.54463752]
[1693753257692,0.64114778,1637.0,1636.8,3.62649156]
[1693753258291,2.14725502,1637.0,1636.8,3.62649156]
[1693753258591,0.64114778,1637.0,1636.8,4.28914072]
[1693753263959,1.27462827,1637.0,1636.8,4.28914072]
[1693753264151,0.64114778,1637.0,1636.8,4.28914072]
[1693753265891,1.27474826,1637.0,1636.8,4.28914072]
[1693753266070,0.64114778,1637.0,1636.8,4.28914072]
[1693753266305,0.64114778,1637.0,1636.9,0.42891407]
[1693753266635,0.64114778,1637.0,1636.9,0.43299754]
[1693753273436,2.23710861,1637.1,1636.9,0.43299754]
[1693753273641,1.60346184,1637.1,1636.9,0.43299754]
[1693753273941,3.10954485,1637.1,1636.9,0.43299754]
[1693753274143,1.60346184,1637.1,1636.9,0.00408347]
[1693753274310,3.10954499,1637.1,1636.9,0.00408347]
[1693753274511,3.10954499,1637.1,1636.8,4.28504907]
[1693753274512,1.60346184,1637.1,1636.8,4.28504907]
[1693753274712,3.10950183,1637.1,1636.8,4.28504907]
[1693753274913,1.60346184,1637.1,1636.8,4.28504907]
[1693753275126,3.10949919,1637.1,1636.8,4.28504907]
[1693753275444,1.60346184,1637.1,1636.8,4.28504907]
[1693753275744,3.10945704,1637.1,1636.9,0.00408347]
[1693753275943,3.41056184,1637.1,1636.9,0.00408347]
[1693753276614,3.41056184,1637.1,1636.8,4.28504907]
[1693753277556,3.41056184,1637.1,1636.9,0.00408347]
[1693753278649,3.41056184,1637.1,1636.8,4.28504907]
[1693753279649,3.41056184,1637.1,1636.9,0.00408347]
[1693753280650,3.41056184,1637.1,1636.8,4.28504907]
[1693753281559,3.41056184,1637.1,1636.9,0.00408347]
[1693753282652,3.41056184,1637.1,1636.8,4.28504907]
[1693753283563,3.41056184,1637.1,1636.9,0.00408347]
[1693753284554,3.41056184,1637.1,1636.8,3.62239991]
[1693753284856,3.41056184,1637.1,1636.9,0.36223999]
[1693753285078,3.41056184,1637.1,1636.8,3.62239991]
[1693753285359,2.44824778,1637.1,1636.8,3.62239991]
[1693753285660,2.44824778,1637.1,1636.9,0.00408347]
[1693753286564,2.44824778,1637.1,1636.8,3.62239991]
[1693753286729,3.41056184,1637.1,1636.8,3.62239991]
[1693753287652,3.41056184,1637.1,1636.9,0.00408347]
[1693753288562,3.41056184,1637.1,1636.8,3.62239991]
[1693753288766,3.41056184,1637.1,1636.8,4.6385099]
[1693753289628,3.41056184,1637.1,1636.9,0.00408615]
[1693753290641,3.41056184,1637.1,1636.8,3.62239991]
[1693753291763,3.41056184,1637.1,1636.9,0.00408615]
[1693753292632,3.41056184,1637.1,1636.8,3.62239991]
[1693753292833,3.41056184,1637.1,1636.8,4.6385099]
[1693753293535,3.41056184,1637.1,1636.9,0.00408615]
[1693753294667,3.41056184,1637.1,1636.8,4.6385099]
[1693753295464,0.6334945,1637.0,1636.8,4.6385099]
[1693753295772,0.6334945,1637.0,1636.9,0.00408615]
[1693753295946,3.41056184,1637.1,1636.9,0.00408615]
[1693753296452,1.27467036,1637.0,1636.9,0.00408615]
[1693753296652,1.27467036,1637.0,1636.8,4.6385099]
[1693753297579,1.27467036,1637.0,1636.9,0.00408615]
[1693753298539,2.5519608,1637.0,1636.8,0.54054587]
[1693753298772,3.70778918,1636.9,1636.8,0.54054587]
[1693753298972,4.02895546,1636.9,1636.8,0.54054587]
[1693753299637,4.02895546,1636.9,1636.8,0.5446402]
[1693753300675,4.02895546,1636.9,1636.8,0.54054587]
[1693753300877,5.10079607,1636.9,1636.8,0.54054587]
[1693753303282,6.38388149,1636.9,1636.8,0.54054587]
[1693753304493,5.10079607,1636.9,1636.8,0.54054587]
[1693753311678,5.74124623,1636.9,1636.8,0.54054587]
[1693753318288,4.77893217,1636.9,1636.8,0.54054587]
[1693753322708,3.7373803,1636.9,1636.8,0.54054587]
[1693753327924,5.53602041,1636.9,1636.8,0.54054587]
[1693753328809,7.13987718,1636.9,1636.8,0.54054587]
[1693753330310,5.53602041,1636.9,1636.8,0.54054587]
[1693753330510,7.13987718,1636.9,1636.8,0.54054587]
[1693753330709,6.63025897,1636.9,1636.8,0.54054587]
[1693753335822,8.23411574,1636.9,1636.8,0.54054587]
[1693753336233,6.63025897,1636.9,1636.8,0.54054587]
[1693753336522,8.23411574,1636.9,1636.8,0.54054587]
[1693753336997,6.63025897,1636.9,1636.8,0.54054587]
[1693753342446,8.23411574,1636.9,1636.8,0.54054587]
[1693753343440,6.95103032,1636.9,1636.8,0.54054587]
[1693753344241,5.53461994,1636.9,1636.8,0.54054587]
[1693753349253,5.85679176,1636.9,1636.8,0.54054587]
[1693753361933,13.67588486,1636.9,1636.7,3.0]
[1693753362131,12.11582706,1636.8,1636.5,0.24870988]
[1693753362334,3.16230783,1636.6,1636.5,0.24870988]
[1693753362550,5.85524282,1636.6,1636.5,0.24870988]
[1693753363249,7.13682802,1636.6,1636.5,0.24870988]
[1693753363448,5.85524282,1636.6,1636.5,0.24870988]
[1693753363651,6.4407671,1636.6,1636.5,0.24870988]
[1693753364350,7.72207557,1636.6,1636.5,0.24870988]
[1693753366386,6.11976774,1636.6,1636.5,0.24870988]
[1693753370804,6.11976774,1636.6,1636.5,3.24870988]
[1693753371851,6.11976774,1636.6,1636.5,0.24870988]
[1693753372046,5.92419445,1636.6,1636.5,0.24870988]
[1693753373264,6.1478445,1636.6,1636.5,0.24870988]
[1693753376403,5.92402287,1636.6,1636.5,0.24870988]
[1693753385281,4.6427144,1636.6,1636.5,0.24870988]
[1693753385896,5.92402287,1636.6,1636.5,0.24870988]
[1693753393192,6.1470996,1636.6,1636.5,0.24870988]
[1693753393406,5.92356906,1636.6,1636.5,0.24870988]
[1693753393906,6.14711317,1636.6,1636.5,0.24870988]
[1693753400923,7.749421,1636.6,1636.5,0.24870988]
[1693753403215,6.46811253,1636.6,1636.5,0.24870988]
[1693753407444,4.8658047,1636.6,1636.5,0.24870988]
[1693753410653,6.79043283,1636.6,1636.5,0.24870988]
[1693753412855,2.14552428,1636.6,1636.5,0.24870988]
[1693753413153,4.06944564,1636.6,1636.5,0.24870988]
[1693753413341,6.91033263,1636.6,1636.5,0.24870988]
[1693753468155,6.32480835,1636.6,1636.5,0.24870988]
[1693753471743,4.40088699,1636.6,1636.5,0.24870988]
[1693753481362,4.76480835,1636.6,1636.5,0.24870988]
[1693753481553,4.44351039,1636.6,1636.5,0.24870988]
[1693753481759,1.28217315,1636.6,1636.5,0.24870988]
[1693753482065,1.28217315,1636.6,1636.5,0.78703238]
[1693753482066,3.40465934,1636.6,1636.5,0.78703238]
[1693753482654,3.40465934,1636.6,1636.5,0.79084039]
[1693753484466,3.89819599,1636.6,1636.5,0.79084039]
[1693753484627,3.17979519,1636.6,1636.5,0.79084039]
[1693753486851,2.61602284,1636.6,1636.5,0.79084039]
[1693753487231,1.89762204,1636.6,1636.5,0.79084039]
[1693753489450,3.25650272,1636.6,1636.5,0.79084039]
[1693753489662,2.2953919,1636.6,1636.5,0.79084039]
[1693753489840,1.5769911,1636.6,1636.5,0.79084039]
[1693753490045,2.2953919,1636.6,1636.5,0.79084039]
[1693753490248,1.5769911,1636.6,1636.5,0.79084039]
[1693753490443,1.35888068,1636.6,1636.5,0.79084039]
[1693753490832,0.64047988,1636.6,1636.5,0.79084039]
[1693753491345,1.35888068,1636.6,1636.5,0.79084039]
[1693753491745,0.64047988,1636.6,1636.5,0.79084039]
[1693753494443,1.6015907,1636.7,1636.5,0.79084039]
[1693753494646,1.6015907,1636.7,1636.5,0.25251789]
[1693753494976,1.6015907,1636.7,1636.6,0.53821364]
[1693753495354,3.25407075,1636.7,1636.6,0.53821364]
[1693753495758,2.53671283,1636.7,1636.5,0.24870988]
[1693753495971,1.6015907,1636.7,1636.5,0.58366897]
[1693753496849,3.25377844,1636.7,1636.5,0.58366897]
[1693753497050,1.6015907,1636.7,1636.5,0.58366897]
[1693753497251,2.31879773,1636.7,1636.6,0.53821364]
[1693753497453,3.25373187,1636.7,1636.6,0.53821364]
[1693753497776,3.25373187,1636.7,1636.6,0.00379983]
[1693753498699,3.25373187,1636.7,1636.5,0.58366897]
[1693753498909,1.6015907,1636.7,1636.5,0.58366897]
[1693753499203,1.35758885,1636.6,1636.5,0.24870988]
[1693753499408,2.29204696,1636.6,1636.5,0.24870988]
[1693753499689,4.81218484,1636.6,1636.5,0.79084039]
[1693753499860,4.17205627,1636.6,1636.5,0.79084039]
[1693753500058,5.45231342,1636.6,1636.5,0.25251789]
[1693753500302,6.15757691,1636.6,1636.5,0.25251789]
[1693753500660,6.15757691,1636.6,1636.5,0.24870988]
[1693753505499,2.26526349,1636.6,1636.5,0.24870988]
[1693753505792,4.24604029,1636.6,1636.5,0.24870988]
[1693753508396,5.5262423,1636.6,1636.5,0.24870988]
[1693753508793,4.24604029,1636.6,1636.5,0.24870988]
[1693753509291,5.5262423,1636.6,1636.5,0.24870988]
[1693753510607,5.77847263,1636.6,1636.5,0.24870988]
[1693753523624,7.37872514,1636.6,1636.5,0.24870988]
[1693753525140,8.29740765,1636.6,1636.5,0.24870988]
[1693753525322,7.01720564,1636.6,1636.5,0.24870988]
[1693753526537,7.02041291,1636.6,1636.5,0.24870988]
[1693753540838,6.1017304,1636.6,1636.5,0.24870988]
[1693753545484,4.50019441,1636.6,1636.5,0.24870988]
[1693753564213,6.4220376,1636.6,1636.5,0.24870988]
[1693753565515,4.50019441,1636.6,1636.5,0.24870988]
[1693753573190,4.54303118,1636.6,1636.5,0.24870988]
[1693753573396,4.22249131,1636.6,1636.5,0.24870988]
[1693753573591,4.22249131,1636.6,1636.5,0.94455952]
[1693753574922,3.97108321,1636.6,1636.5,0.94455952]
[1693753576314,2.68878631,1636.6,1636.5,0.94455952]
[1693753583838,1.92879899,1636.6,1636.5,0.94455952]
[1693753588306,5.78217639,1636.6,1636.5,0.94455952]
[1693753607756,5.78217639,1636.6,1636.5,0.94025157]
[1693753611401,5.78217639,1636.6,1636.5,0.24870988]
[1693753612912,5.02173258,1636.6,1636.5,0.24870988]
[1693753613083,5.78167029,1636.6,1636.5,0.24870988]
[1693753614214,7.38345273,1636.6,1636.5,0.24870988]
[1693753618217,6.10202678,1636.6,1636.5,0.24870988]
[1693753618426,7.38379893,1636.6,1636.5,0.24870988]
[1693753618714,6.10202678,1636.6,1636.5,0.24870988]
[1693753619816,7.3837913,1636.6,1636.5,0.24870988]
[1693753621317,7.38383237,1636.6,1636.5,0.24870988]
[1693753621523,4.22204993,1636.6,1636.5,0.24870988]
[1693753621721,4.22204993,1636.6,1636.5,0.25301783]
[1693753621883,4.22204993,1636.6,1636.5,0.92334109]
[1693753631246,3.97064492,1636.6,1636.5,0.92334109]
[1693753635247,2.68883933,1636.6,1636.5,0.92334109]
[1693753635433,3.97064492,1636.6,1636.5,0.92334109]
[1693753635637,2.68883933,1636.6,1636.5,0.92334109]
[1693753636238,3.97064492,1636.6,1636.5,0.92334109]
[1693753636740,3.27064492,1636.6,1636.5,0.92334109]
[1693753636911,1.98883933,1636.6,1636.5,0.92334109]
[1693753637451,3.27064492,1636.6,1636.5,0.92334109]
[1693753637617,1.98883933,1636.6,1636.5,0.92334109]
[1693753651775,3.27064492,1636.6,1636.5,0.92334109]
[1693753651972,3.27034582,1636.6,1636.5,0.92334109]
[1693753652176,3.50884466,1636.6,1636.5,0.92334109]
[1693753658488,5.06884466,1636.6,1636.5,0.92334109]
[1693753658690,5.91835737,1636.6,1636.5,0.92334109]
[1693753659275,7.52013981,1636.6,1636.5,0.92334109]
[1693753659599,7.52013981,1636.6,1636.5,0.25301783]
[1693753659796,7.52013981,1636.6,1636.5,1.61874076]
[1693753661595,5.91835737,1636.6,1636.5,1.61874076]
[1693753661796,7.52013981,1636.6,1636.5,1.61874076]
[1693753662186,7.52013981,1636.6,1636.5,2.1585065]
[1693753662587,7.52013981,1636.6,1636.5,1.61874076]
[1693753662760,6.6706271,1636.6,1636.5,1.61874076]
[1693753665484,5.38882151,1636.6,1636.5,1.61874076]
[1693753667925,6.15503084,1636.6,1636.5,1.61874076]
[1693753704565,4.55265069,1636.6,1636.5,1.61874076]
[1693753727426,6.47550687,1636.6,1636.5,1.61874076]
[1693753728191,7.30550756,1636.6,1636.5,1.61874076]
[1693753728712,5.38265138,1636.6,1636.5,1.61874076]
[1693753740632,7.30550756,1636.6,1636.5,1.61874076]
[1693753740837,5.38265138,1636.6,1636.5,1.61874076]
[1693753742639,8.38265138,1636.6,1636.5,1.61874076]
[1693753748446,7.55265069,1636.6,1636.5,1.61874076]
[1693753749242,9.15635796,1636.6,1636.5,1.61874076]
[1693753758850,9.10635796,1636.6,1636.5,1.61874076]
[1693753759950,9.10635796,1636.6,1636.5,1.20846515]
[1693753759951,7.59635796,1636.6,1636.5,1.20846515]
[1693753760315,7.59635796,1636.6,1636.5,1.73225287]
[1693753760716,7.59635796,1636.6,1636.5,1.73656082]
[1693753761245,9.15635796,1636.6,1636.5,1.73656082]
[1693753761745,9.15635796,1636.6,1636.5,1.20846515]
[1693753806210,7.55265069,1636.6,1636.5,1.20846515]
[1693753818625,7.55265069,1636.6,1636.5,1.08846515]
[1693753820322,8.68628138,1636.6,1636.5,1.08846515]
[1693753820513,10.60913756,1636.6,1636.5,1.08846515]
[1693753824523,8.68628138,1636.6,1636.5,1.08846515]
[1693753838050,7.59558269,1636.6,1636.5,1.08846515]
[1693753839732,7.59558269,1636.6,1636.5,1.71393132]
[1693753839938,7.59558269,1636.6,1636.5,1.71740472]
[1693753843747,7.59558269,1636.6,1636.5,1.71393132]
[1693753850451,9.15558269,1636.6,1636.5,1.71393132]
[1693753856865,10.44434658,1636.6,1636.5,1.71393132]
[1693753857234,8.84141458,1636.6,1636.5,1.71393132]
[1693753857843,7.55265069,1636.6,1636.5,1.71393132]
[1693753866949,7.55265069,1636.6,1636.5,1.08846515]
[1693753867174,7.55265069,1636.6,1636.5,1.66792214]
[1693753873455,7.55265069,1636.6,1636.5,1.08846515]
[1693753896116,9.47550687,1636.6,1636.5,1.08846515]
[1693753896515,7.55265069,1636.6,1636.5,1.08846515]
[1693753897188,8.68112138,1636.6,1636.5,1.08846515]
[1693753898522,10.60397756,1636.6,1636.5,1.08846515]
[1693753935461,7.60397756,1636.6,1636.5,1.08846515]
[1693753939668,10.60397756,1636.6,1636.5,1.08846515]
[1693753940967,13.6858316,1636.6,1636.5,1.08846515]
[1693753941140,1.56,1636.5,1636.3,0.1]
[1693753941463,3.48471694,1636.4,1636.3,0.1]
[1693753941626,11.0569475,1636.4,1636.3,0.1]
[1693753943266,11.5285098,1636.4,1636.3,0.1]
[1693753943470,9.9458368,1636.4,1636.3,0.1]
[1693753943761,13.31399888,1636.4,1636.3,0.1]
[1693753943968,11.7316688,1636.4,1636.3,0.1]
[1693753944164,13.31397592,1636.4,1636.3,0.1]
[1693753944365,11.7316688,1636.4,1636.3,0.1]
[1693753945965,9.80816418,1636.4,1636.3,0.1]
[1693753957141,3.0,1636.3,1635.8,0.1]
[1693753957349,0.64021108,1636.0,1635.8,0.1]
[1693753957542,1.6005277,1636.0,1635.9,0.63692342]
[1693753957773,3.64455843,1636.0,1635.9,0.63692342]
[1693753957946,3.64455843,1636.0,1635.8,0.1]
[1693753958146,1.6005277,1636.0,1635.8,0.1]
[1693753958342,0.64021108,1636.0,1635.8,0.1]
[1693753958545,0.64021108,1636.0,1635.9,0.6202242]
[1693753958875,0.64021108,1636.0,1635.8,0.1]
[1693753958876,1.98263924,1636.0,1635.8,0.1]
[1693753959068,1.58024827,1635.9,1635.8,0.1]
[1693753959265,1.98251086,1636.0,1635.8,0.1]
[1693753959981,4.24183988,1635.9,1635.8,0.1]
[1693753960545,3.14001697,1635.9,1635.8,0.1]
[1693753963281,2.49993427,1635.9,1635.8,0.1]
[1693753963480,1.56,1635.9,1635.8,0.1]
[1693753963851,2.49925787,1635.9,1635.8,0.1]
[1693753964283,1.56,1635.9,1635.8,0.1]
[1693753967178,2.2000827,1635.9,1635.8,0.1]
[1693753967383,3.13908349,1635.9,1635.8,0.1]
[1693753970198,1.56,1635.9,1635.8,0.1]
[1693753974991,2.49875158,1635.9,1635.8,0.1]
[1693753975192,1.56,1635.9,1635.8,0.1]
[1693753975394,2.49877169,1635.9,1635.8,0.1]
[1693753975585,3.13885439,1635.9,1635.8,0.1]
[1693753980401,4.23958388,1635.9,1635.8,0.1]
[1693753980780,4.23904422,1635.9,1635.8,0.1]
[1693753985306,5.19802334,1635.9,1635.8,0.1]
[1693753987316,4.55870393,1635.9,1635.8,0.1]
[1693753991410,5.67844936,1635.9,1635.8,0.1]
[1693753997222,6.95708818,1635.9,1635.8,0.1]
[1693753999235,7.33204439,1635.9,1635.8,0.1]
[1693754002002,10.73355814,1635.9,1635.8,0.1]
[1693754002214,9.13525961,1635.9,1635.8,0.1]
[1693754002539,10.73834367,1635.9,1635.8,0.1]
[1693754004837,7.65648963,1635.9,1635.8,0.1]
[1693754018911,6.05340557,1635.9,1635.8,0.1]
[1693754019312,7.65686026,1635.9,1635.8,0.1]
[1693754023962,6.05340557,1635.9,1635.8,0.1]
[1693754036245,7.97136381,1635.9,1635.8,0.1]
[1693754037149,6.05340557,1635.9,1635.8,0.1]
[1693754048491,2.67974543,1635.9,1635.8,0.1]
[1693754048680,6.16402946,1635.9,1635.8,0.1]
[1693754064392,8.08839705,1635.9,1635.8,0.1]
[1693754074238,9.69908024,1635.9,1635.8,0.1]
[1693754080369,12.78093428,1635.9,1635.8,0.1]
[1693754084674,12.78164131,1635.9,1635.8,0.1]
[1693754085106,10.85682445,1635.9,1635.8,0.1]
[1693754087556,12.78113661,1635.9,1635.8,0.1]
[1693754091229,10.85682445,1635.9,1635.8,0.1]
[1693754093560,12.78053461,1635.9,1635.8,0.1]
[1693754102143,11.17033917,1635.9,1635.8,0.1]
[1693754104177,6.9687397,1635.9,1635.8,0.1]
[1693754104385,5.04502954,1635.9,1635.8,0.1]
[1693754104683,6.64838113,1635.9,1635.8,0.1]
[1693754105737,8.09312291,1636.0,1635.8,0.1]
[1693754105983,3.2092416,1636.0,1635.8,0.1]
[1693754106186,3.2092416,1636.0,1635.8,3.67951264]
[1693754106187,1.60350096,1636.0,1635.8,3.67951264]
[1693754106487,1.92420116,1636.4,1635.9,0.36795126]
[1693754107046,1.92420116,1636.3,1635.9,0.36795126]
[1693754107246,1.56,1636.1,1635.8,0.1]
[1693754107483,1.56,1636.1,1636.0,0.49729637]
[1693754107972,1.56,1636.1,1635.8,0.1]
[1693754108556,4.56,1636.1,1635.8,0.1]
[1693754110480,1.56,1636.1,1635.8,0.1]
[1693754113927,4.44245206,1636.2,1635.8,0.1]
[1693754114129,2.84101512,1636.2,1635.8,0.1]
[1693754115401,0.96066405,1636.1,1635.8,0.1]
[1693754116294,0.64038266,1636.0,1635.8,0.1]
[1693754116681,1.60104671,1636.1,1635.8,0.1]
[1693754118911,3.16104671,1636.1,1635.8,0.1]
[1693754121029,3.16104671,1636.1,1635.7,0.6106]
[1693754121241,3.16104671,1636.1,1635.9,0.49747747]
[1693754121733,2.20038266,1636.1,1635.9,0.49747747]
[1693754121881,2.20038266,1636.1,1635.7,1.03154134]
[1693754122284,3.16104671,1636.1,1635.7,1.03154134]
[1693754122604,2.20038266,1636.1,1635.7,1.03154134]
[1693754128892,2.1654,1636.0,1635.7,1.03154134]
[1693754136218,2.1654,1636.0,1635.8,0.49609486]
[1693754137728,2.80578266,1636.0,1635.8,0.49609486]
[1693754143531,3.76644671,1636.0,1635.8,0.49609486]
[1693754145609,0.83079386,1635.9,1635.8,0.49609486]
[1693754146229,3.76644671,1636.0,1635.8,0.49609486]
[1693754147123,0.19041629,1635.9,1635.8,0.49609486]
[1693754147499,0.19041612,1635.9,1635.8,0.49609486]
[1693754147695,0.83079878,1635.9,1635.8,0.49609486]
[1693754148327,2.94879878,1635.9,1635.8,0.49609486]
[1693754149115,0.83079878,1635.9,1635.8,0.49609486]
[1693754149512,1.69129053,1635.9,1635.6,0.59881338]
[1693754149810,2.74112114,1635.8,1635.6,1.01975472]
[1693754151240,2.74112114,1635.8,1635.7,0.496276]
[1693754151527,3.47200574,1635.8,1635.6,1.01975472]
[1693754151731,2.74112114,1635.8,1635.6,1.01975472]
[1693754160834,2.74112114,1635.8,1635.6,0.91975472]
[1693754161217,0.64102114,1635.8,1635.6,0.91975472]
[1693754161618,0.83146181,1635.8,1635.6,0.91975472]
[1693754163208,0.64102114,1635.9,1635.6,4.00160876]
[1693754163408,1.37183906,1635.9,1635.7,0.40016088]
[1693754163608,0.64102114,1635.9,1635.7,0.40016088]
[1693754166346,0.64102114,1635.9,1635.8,0.6170795]
[1693754166645,0.64102114,1635.9,1635.7,0.40016088]
[1693754166808,1.37184366,1635.9,1635.7,0.40016088]
[1693754175914,2.33250771,1635.9,1635.7,0.40016088]
[1693754176650,2.33250771,1635.9,1635.8,0.6220895]
[1693754176810,4.52440771,1635.9,1635.8,0.6220895]
[1693754180254,4.71160036,1635.9,1635.8,0.6220895]
[1693754192743,2.51970036,1635.9,1635.8,0.6220895]
[1693754193577,4.76260036,1635.9,1635.8,0.6220895]
[1693754194678,5.68157922,1635.9,1635.8,0.6220895]
[1693754194883,6.65242865,1635.9,1635.8,0.6220895]
[1693754195079,6.65242865,1635.9,1635.6,3.0]
[1693754195279,3.6156662,1635.8,1635.5,0.6106]
[1693754195487,5.63954368,1635.8,1635.5,3.69245404]
[1693754195659,5.63954368,1635.8,1635.6,3.63308897]
[1693754199579,5.91640773,1635.8,1635.6,0.63308897]
[1693754199781,0.83050741,1635.7,1635.6,0.63308897]
[1693754200158,3.11210741,1635.7,1635.6,0.63308897]
[1693754200873,4.67210741,1635.7,1635.6,0.63308897]
[1693754201285,5.21167828,1635.7,1635.6,0.63308897]
[1693754207499,4.67210741,1635.7,1635.6,0.63308897]
[1693754208932,5.51085456,1635.7,1635.6,0.63308897]
[1693754216849,4.86981088,1635.7,1635.6,0.63308897]
[1693754217221,5.51085456,1635.7,1635.6,0.63308897]
[1693754219755,4.67210741,1635.7,1635.6,0.63308897]
[1693754222163,3.11210741,1635.7,1635.6,0.63308897]
[1693754222356,3.39574368,1635.8,1635.6,0.63308897]
[1693754223160,2.7547,1635.8,1635.6,0.63308897]
[1693754223466,3.39574368,1635.8,1635.6,0.63308897]
[1693754227070,3.39574368,1635.8,1635.6,0.53308897]
[1693754227568,1.60170773,1635.9,1635.6,0.53308897]
[1693754227934,2.32992517,1635.9,1635.6,0.53308897]
[1693754228135,1.60170773,1635.9,1635.6,0.53308897]
[1693754228335,2.32993875,1635.9,1635.6,0.53308897]
[1693754228637,1.60170773,1635.9,1635.6,0.53308897]
[1693754228852,2.32989333,1635.9,1635.6,0.53308897]
[1693754229136,1.60170773,1635.9,1635.6,0.53308897]
[1693754229359,2.32989394,1635.9,1635.6,0.53308897]
[1693754229668,1.60170773,1635.9,1635.6,0.53308897]
[1693754229868,2.32991107,1635.9,1635.6,0.53308897]
[1693754230068,1.60170773,1635.9,1635.6,0.53308897]
[1693754230236,2.32987033,1635.9,1635.6,0.53308897]
[1693754230438,1.60170773,1635.9,1635.6,0.53308897]
[1693754230841,2.32987736,1635.9,1635.6,0.53308897]
[1693754231047,1.60170773,1635.9,1635.6,0.53308897]
[1693754231248,0.64104368,1635.9,1635.6,0.53308897]
[1693754231451,2.32989549,1635.9,1635.6,0.53308897]
[1693754231751,1.60170773,1635.9,1635.6,0.53308897]
[1693754231955,2.32990935,1635.9,1635.6,0.53308897]
[1693754232139,0.18923253,1635.8,1635.6,0.53308897]
[1693754232338,1.60170773,1635.9,1635.6,0.53308897]
[1693754232539,2.32992076,1635.9,1635.6,0.53308897]
[1693754232753,0.83027581,1635.8,1635.6,0.53308897]
[1693754232962,0.64104368,1635.8,1635.6,0.53308897]
[1693754237094,1.36939284,1635.8,1635.6,0.53308897]
[1693754237375,0.64104368,1635.8,1635.6,0.53308897]
[1693754237554,1.3694652,1635.8,1635.6,0.53308897]
[1693754237751,0.64104368,1635.8,1635.6,0.53308897]
[1693754237971,1.36947843,1635.8,1635.6,0.53308897]
[1693754238165,0.64104368,1635.8,1635.6,0.53308897]
[1693754238344,1.36948006,1635.8,1635.6,0.53308897]
[1693754238546,0.64104368,1635.8,1635.6,0.53308897]
[1693754238746,1.36953276,1635.8,1635.6,0.53308897]
[1693754238958,0.64104368,1635.8,1635.6,0.53308897]
[1693754239158,1.36954203,1635.8,1635.6,0.53308897]
[1693754239375,0.64104368,1635.8,1635.6,0.53308897]
[1693754239679,1.36958362,1635.8,1635.6,0.53308897]